Cogmind - Beta 15 @@@ ROGUE MODE // 2025.08.29 @ 02:10:46 Player: lepire Result: Self-destructed Performance ------------- Evolutions (2) 1000 Regions Visited (3) 600 Robots Destroyed (59) 295 Value Destroyed (1641) 1641 Prototype IDs (1) 20 Alien Tech Used (0) 0 Bonus (0) 0 TOTAL SCORE: 3556 Bonus ------- None Cogmind --------- Core Integrity 490/550 Matter 280/300 Energy 63/240 System Corruption 0% Temperature Cool (0) Movement Walking (120) Location -8/Materials Parts ------- > --- POWER (1) -------- Nuclear Core > --- PROPULSION (3) --- Improved Aluminum Leg Improved Aluminum Leg Carbon-fiber Leg > --- UTILITY (4) ------ Improved Cooling System Medium Storage Unit Particle Charger > --- WEAPON (3) ------- Improved EM Shotgun Beam Rifle Ion Cannon > --- INVENTORY (10) --- Light Ion Engine Improved Aluminum Leg Improved Cooling System Large Storage Unit Targeting Computer Small Laser Rocket Launcher Improved Grenade Launcher Peak State ------------ > --- POWER ------------ Nuclear Core > --- PROPULSION ------- Improved Aluminum Leg Improved Aluminum Leg Carbon-fiber Leg > --- UTILITY ---------- Improved Cooling System Medium Storage Unit Particle Charger Light Armor Plating > --- WEAPON ----------- Improved EM Shotgun Beam Rifle Ion Cannon > --- INVENTORY -------- Light Ion Engine Nuclear Core Improved Aluminum Leg Improved Heat Sink Improved Cooling System Large Storage Unit Targeting Computer Small Laser Rocket Launcher Improved Grenade Launcher [Rating: 29] Favorites ----------- Power Ion Engine Engine Ion Engine Power Core Light Nuclear Core Propulsion Improved Aluminum Leg Leg Improved Aluminum Leg Wheel Wheel Utility Heat Sink Device Heat Sink Storage Medium Storage Unit Protection Light Armor Plating Weapon Medium Laser Energy Gun Medium Laser Energy Cannon Ion Cannon Launcher Rocket Launcher Build | -11 -10 -9 -8 ------- Run | Yrd Mat Mat Mat Slots Evolved 4 | . . 2 2 Power . | . . . . Propulsion 1 | . . 1 . Utility 2 | . . 1 1 Weapon 1 | . . . 1 Parts Attached 43 | 10 12 9 12 Power 7 | 2 3 . 2 Engine 4 | 2 2 . . Core 3 | . 1 . 2 Reactor . | . . . . Propulsion 14 | 3 4 4 3 Treads . | . . . . Leg 11 | 1 3 4 3 Wheel 3 | 2 1 . . Hover . | . . . . Flight . | . . . . Utility 12 | 3 3 1 5 Device 7 | 1 2 1 3 Storage 3 | 2 1 . . Processor . | . . . . Hackware . | . . . . Protection 2 | . . . 2 Artifact . | . . . . Weapon 10 | 2 2 4 2 Energy Gun 8 | 2 2 3 1 Energy Cannon 1 | . . . 1 Ballistic Gun . | . . . . Ballistic Cannon . | . . . . Launcher 1 | . . 1 . Special Weapon . | . . . . Impact Weapon . | . . . . Slashing Weapon . | . . . . Piercing Weapon . | . . . . Special Melee Weapon . | . . . . Unidentified Prototypes 1 | . . . 1 Parts Lost 9 | . 2 4 3 Power 2 | . . 1 1 Propulsion 1 | . 1 . . Utility 3 | . . 1 2 Weapon 3 | . 1 2 . Highest Loss Streak 3 | . 1 3 2 To Critical Strikes . | . . . . Average Backups 7 | 1 7 7 8 Power 1 | . 1 . 1 Propulsion 2 | 1 2 2 1 Utility 2 | . 3 3 2 Weapon 1 | . . 1 2 Tool/Special . | . . . . Unused Backups 7 | . 2 2 3 Power . | . . . . Propulsion 4 | . 2 2 . Utility 2 | . . . 2 Weapon 1 | . . . 1 Tool/Special . | . . . . Average Slot Usage (%) 98 | . 99 98 96 Engine 5 | . 8 3 . Core 6 | . 5 7 8 Leg 25 | . 22 32 27 Wheel 2 | . 5 . . Device 15 | . 12 21 14 Storage 12 | . 15 11 9 Protection 2 | . . . 9 Energy Gun 23 | . 27 20 18 Energy Cannon 1 | . . . 8 Peak Build Rating 29 | 7 10 18 29 Average Rating 13 | 4 8 15 24 On Entrance 7 | . 7 9 15 Naked Turns . | . . . . Heaviest Build 37 | 18 20 22 37 Greatest Support 41 | 20 20 39 41 Greatest Overweight (x) 2 | 2 1 . . Average Overweight (x) . | . . . . Largest Inventory Capacity 10 | 8 10 10 10 Average Capacity 9 | 7 8 10 10 Most Carried 10 | 3 9 10 10 Average Carried 7 | 1 7 7 8 Final Capacity 10 | 8 10 10 10 Final Carried 8 | 3 7 8 8 Class Distribution -------------------- 51% | Mutant 28% | Scavenger-Mutant 11% | Gunner 8% | Tank Dominant Class ---------------- Mutant | -10/Materials Mutant | -9/Materials Gunner | -8/Materials Resources | -11 -10 -9 -8 ----------- Run | Yrd Mat Mat Mat Matter Collected 703 | 290 130 168 115 Remotely . | . . . . Salvage Created 2100 | 78 1043 457 522 Parts 118 | 5 46 46 21 Haulers Intercepted 2 | . 1 1 . Recyclers Shooed 6 | 1 2 3 . Parts Field Recycled . | . . . . Retrieved Matter . | . . . . Parts Self-Destructed . | . . . . Prevented . | . . . . Kills | -11 -10 -9 -8 ------- Run | Yrd Mat Mat Mat Combat Hostiles Destroyed 44 | . 16 18 10 Guns 32 | . 15 10 7 Cannons 1 | . . . 1 AOE 8 | . . 7 1 Classes Destroyed 12 | 2 5 2 3 Worker 1 | . . . 1 Builder 4 | . 2 2 . Tunneler 1 | 1 . . . Hauler 2 | . 1 1 . Recycler 3 | 1 2 . . Operator 1 | . 1 . . Watcher 3 | . 3 . . Swarmer 9 | . . 9 . Grunt 30 | . 16 8 6 Duelist 1 | . . . 1 Sentry 3 | . . 1 2 Hunter 1 | . . . 1 Best Kill Streak 5 | 2 4 5 3 Combat Bots Only 5 | . 3 5 2 Max Kills in Single Turn 3 | 1 1 3 2 Gunslinging 1 | . . . 1 Exploded 3 | . . 3 1 Melee . | . . . . Uniques/NPCs Destroyed . | . . . . Combat | -11 -10 -9 -8 -------- Run | Yrd Mat Mat Mat Hostile Shots Fired 206 | . 71 85 50 Missed 63 | . 18 31 14 Hits 143 | . 53 54 36 Melee 2 | . . . 2 Projectile 141 | . 53 54 34 Critical Strikes 1 | . . . 1 Damage Taken 1903 | 1 644 539 719 Core 321 | 1 183 77 60 Absorbed by Shields . | . . . . Core Remaining (%) 68 | 99 26 80 . Volleys Fired 184 | 4 98 52 30 Largest 3 | 2 2 2 3 Hottest 161 | 90 100 96 161 Shots Fired 360 | 7 192 89 72 Gun 336 | 7 192 84 53 Cannon 19 | . . . 19 Launcher 5 | . . 5 . Special . | . . . . Kinetic . | . . . . Thermal 342 | 7 192 84 59 Explosive 5 | . . 5 . Electromagnetic 13 | . . . 13 Robot Hit Streak 19 | 6 13 9 19 Robot Miss Streak 7 | 1 4 7 5 Penetration Max . | . . . . Secondary Targets 3 | . 1 1 1 Max Gunslinging Chain 1 | . 1 1 1 Shots Hit Robots 230 | 6 124 54 46 Core Hits 104 | 3 47 33 21 Critical Kills 1 | . . . 1 Critical Parts Destroyed . | . . . . Critical Strikes 20 | 1 16 . 3 Burn 19 | 1 16 . 2 Meltdown 1 | . . . 1 Melee Attacks . | . . . . Impact . | . . . . Slashing . | . . . . Piercing . | . . . . Sneak Attacks . | . . . . Combat Hostiles . | . . . . Follow-up Attacks . | . . . . Damage Inflicted 3897 | 74 1564 1176 1083 Guns 2834 | 72 1539 639 584 Cannons 266 | . . . 266 Explosions 757 | . . 524 233 Melee . | . . . . Ramming 40 | 2 25 13 . Kinetic . | . . . . Thermal 3109 | 72 1539 639 859 Explosive 524 | . . 524 . Electromagnetic 224 | . . . 224 Impact . | . . . . Slashing . | . . . . Piercing . | . . . . Highest Corruption . | . . . . Average Corruption . | . . . . Corruption Purged . | . . . . Corruption Blocked . | . . . . Overload Shots . | . . . . Overflow Damage 12 | . . 2 10 Projectiles . | . . . . Explosions 12 | . . 2 10 Melee . | . . . . Knockbacks 1 | . . 1 . Impact 1 | . . 1 . Kinetic . | . . . . Secondary . | . . . . Self-Inflicted Damage 143 | 1 . . 142 Shots 3 | . . . 3 Rammed 1 | 1 . . . Targets Rammed 6 | 1 4 1 . Kicked 5 | . 4 1 . Crushed . | . . . . Highest Temperature 304 | 70 234 1 304 Average Temperature 55 | 29 50 1 89 Received Heat Transfer 753 | . 360 141 252 Effects 2 | . 2 . . Energy Bleed 2 | . 2 . . Siege Activations . | . . . . Martial Activations . | . . . . Shielding Activations . | . . . . Robots Disrupted . | . . . . Combat Hostiles . | . . . . Robots Corrupted . | . . . . Combat Hostiles . | . . . . Parts Fried . | . . . . Impact Corruptions . | . . . . Robots Melted 4 | . 2 1 1 Combat Hostiles 3 | . 1 1 1 Parts Melted 25 | 1 15 4 5 Heat Transferred 9173 | 260 5652 1628 1633 Parts Sabotaged . | . . . . Parts Stolen . | . . . . Parts Stripped . | . . . . Power Chain Reactions 3 | . . . 3 Alert | -11 -10 -9 -8 ------- Run | Yrd Mat Mat Mat Maximum Alert Level 1 | . . 1 . Low Security (%) 90 | 100 100 57 100 Level 1 9 | . . 42 . Level 2 . | . . . . Level 3 . | . . . . Level 4 . | . . . . Level 5 . | . . . . High Security . | . . . . Max Security . | . . . . Peak Influence 314 | 5 87 314 160 Initial 125 | . . 22 125 Average 73 | . 30 157 105 Influence Increases 1312 | 10 472 539 291 Destroy 0b10 Robot/C 880 | . 320 360 200 Destroy 0b10 Robot/NC 75 | 10 45 15 5 Destroy Leader 200 | . 88 72 40 Disable Machine 75 | . . 60 15 Destroy Structure 37 | . 4 17 16 Partial Spotted 15 | . . . 15 Lose Combat Pursuer 30 | . 15 15 . Influence Decreases 1172 | 10 417 296 449 Entered New Map 206 | . . 33 173 Time Decay 876 | 10 397 223 246 Lost Part 90 | . 20 40 30 Squads Dispatched 10 | . 4 4 2 Investigation 5 | . 3 2 . Extermination . | . . . . Reinforcement 5 | . 1 2 2 Assault . | . . . . Garrison . | . . . . Intercept . | . . . . Searches Triggered . | . . . . Construction Impeded 2 | . . 1 1 Haulers Reinforced . | . . . . Active Scanning Responses . | . . . . Cargo Convoy Interrupts . | . . . . Stealth | -11 -10 -9 -8 --------- Run | Yrd Mat Mat Mat Distress Signals 8 | . 2 5 1 Communications Jammed . | . . . . Distress Signals . | . . . . Times Spotted 67 | . 25 29 13 Peak Tracking Total 8 | . 4 8 5 Tactical Retreats 2 | . 1 1 . Traps | -11 -10 -9 -8 ------- Run | Yrd Mat Mat Mat Traps Triggered 5 | . 3 2 . Indirectly . | . . . . Trap Hack Attempts . | . . . . Triggered . | . . . . Disarmed . | . . . . Reprogrammed . | . . . . Reused . | . . . . Traps Extracted . | . . . . Installed . | . . . . Triggered . | . . . . Machines | -11 -10 -9 -8 ---------- Run | Yrd Mat Mat Mat Machines Disabled 5 | . . 4 1 Max in Single Turn 2 | . . 2 1 Machines Repaired . | . . . . Machines Dismantled . | . . . . Machines Sabotaged . | . . . . Overloaded Fab Kills . | . . . . Hacking | -11 -10 -9 -8 --------- Run | Yrd Mat Mat Mat Machines Accessed . | . . . . Terminals . | . . . . Fabricators . | . . . . Repair Stations . | . . . . Recycling Units . | . . . . Scanalyzers . | . . . . Garrison Access . | . . . . Total Hacks . | . . . . Successful . | . . . . Failed . | . . . . Catastrophic . | . . . . Database Lockouts . | . . . . Manual . | . . . . Terminals . | . . . . Fabricators . | . . . . Repair Stations . | . . . . Recycling Units . | . . . . Scanalyzers . | . . . . Garrison Access . | . . . . Terminal Hacks . | . . . . Fabricator Hacks . | . . . . Repair Station Hacks . | . . . . Recycling Unit Hacks . | . . . . Scanalyzer . | . . . . Garrison Access Hacks . | . . . . Unauthorized Hacks . | . . . . Terminals . | . . . . Fabricators . | . . . . Repair Stations . | . . . . Recycling Units . | . . . . Scanalyzers . | . . . . Garrison Access . | . . . . Data Cores Recovered . | . . . . Used . | . . . . Hacking Detections . | . . . . Full Trace Events . | . . . . Feedback Events . | . . . . Feedback Blocked . | . . . . Robot Schematics Acquired . | . . . . Robots Built . | . . . . Authchips . | . . . . Time . | . . . . Total Robot Build Rating . | . . . . Part Schematics Acquired . | . . . . Parts Built . | . . . . Authchips . | . . . . Time . | . . . . Total Part Build Rating . | . . . . Parts Repaired . | . . . . Time . | . . . . Parts Recycled . | . . . . Recycled Matter . | . . . . Retrieved Matter . | . . . . Retrieved Components . | . . . . Parts Scanalyzed . | . . . . Part Schematics Acquired . | . . . . Parts Damaged . | . . . . Bothacking | -11 -10 -9 -8 ------------ Run | Yrd Mat Mat Mat Used RIF Installer . | . . . . Robots Hacked . | . . . . Non-combat . | . . . . Combat . | . . . . Robot Hacks Applied . | . . . . Relay Couplers Released . | . . . . Fabnet Peak Effective % . | . . . . Robots Rewired . | . . . . Allies Hacked . | . . . . Hacks Repelled . | . . . . Allies | -11 -10 -9 -8 -------- Run | Yrd Mat Mat Mat Total Allies . | . . . . Largest Group . | . . . . Highest-Rated Group . | . . . . Highest-Rated Ally . | . . . . Total Orders . | . . . . Ally Attacks . | . . . . Total Damage . | . . . . Kills . | . . . . Allies Corrupted . | . . . . Allies Melted . | . . . . Intel | -11 -10 -9 -8 ------- Run | Yrd Mat Mat Mat Active Infowar (turns) 8 | 8 . . . Seismic 8 | 8 . . . Robot Analysis Total . | . . . . Derelict Logs Recovered . | . . . . Drone Launches . | . . . . Drone Recoveries . | . . . . Exploration | -11 -10 -9 -8 ------------- Run | Yrd Mat Mat Mat Turns Passed 2374 | 111 1220 521 522 Spaces Moved 1396 | 97 745 263 291 Core 16 | 16 . . . Treads . | . . . . Legs 1156 | 12 590 263 291 Wheels 224 | 69 155 . . Hover . | . . . . Flight . | . . . . Fastest Speed 50 | 50 80 120 120 Average Speed 113 | 85 112 120 120 Slowest Speed 190 | 150 190 120 120 Overloaded Moves . | . . . . Propulsion Burnouts . | . . . . Robots Hopped . | . . . . Potential Cave-ins . | . . . . Cave-ins Triggered . | . . . . Exploration Rate (%) 32 | 5 72 28 23 Regions Visited 3 Branch Regions . Pre-discovered Areas . | . . . . Known Exits Taken . | . . . . Unknown Exits Taken 3 | 1 1 1 . Scrap Searched . | . . . . Spaces Dug . | . . . . Terrain Destroyed 30 | . . 18 12 Melee . | . . . . Projectile 4 | . . . 4 AOE 26 | . . 18 8 Terrain Rammed . | . . . . Walls Destroyed . | . . . . Machines Disabled . | . . . . Actions | -11 -10 -9 -8 --------- Run | Yrd Mat Mat Mat Total 1826 | 113 936 379 398 Wait 151 | . 55 43 53 Move 1394 | 97 744 262 291 Hop . | . . . . Pick Up 21 | 2 10 4 5 Fast Attach 10 | 7 1 1 1 Attach 9 | . 1 4 4 Detach . | . . . . Swap 32 | 3 11 8 10 Drop 20 | . 12 4 4 Fire 184 | 4 98 52 30 Melee . | . . . . Ram . | . . . . Kick 5 | . 4 1 . Crush . | . . . . Escape Stasis . | . . . . Rewire . | . . . . Trap . | . . . . Miscellaneous . | . . . . Route ------- -11/Scrapyard -10/Materials -9/Materials -8/Materials History --------- Turn | Location | Event 19 | -11/Scrapyard | Discovered new exit (range 16) 112 | -11/Scrapyard | Entered Materials 317 | -10/Materials | Build established: Mutant 855 | -10/Materials | Core integrity fell below 50% 1312 | -10/Materials | Discovered new exit (range 7) 1332 | -10/Materials | Entered another Materials area 1332 | -9/Materials | Evolved 2 slots: Propulsion x1, Utility x1 1705 | -9/Materials | Lost 3 parts (1p2w) 1847 | -9/Materials | Discovered new exit (range 5) 1853 | -9/Materials | Entered another Materials area 1853 | -8/Materials | Evolved 2 slots: Utility x1, Weapon x1 2375 | -8/Materials | Self-destructed Last Messages --------------- 02352_ U-05 Engineer builds a Wall. 02352_ U-05 Engineer lays Concrete. 02360_ G-47 Trooper misfires. 02361_ U-05 Engineer builds a Wall. 02363_ Chain reaction triggered in Lgt. Nuclear Core. 02363_ G-47 Trooper suffers critical hit (Burn). 02363_ G-47 Trooper destroyed. 02363_ Destroyed Tractor Beam. 02364_ U-05 Engineer lays Concrete. 02364_ ALERT: Construction progress impeded, dispatching reinforcements to local area. 02365_ U-05 Engineer lays Concrete. 02368_ R-06 Scavenger collects Imp. Heat Sink. 02368_ U-05 Engineer lays Concrete. 02371_ R-06 Scavenger collects Aluminum Leg. 02372_ U-05 Engineer lays Concrete. 02374_ U-05 Engineer builds a Door. 02374_ U-05 Engineer lays Concrete. 02375_ U-05 Engineer builds a Door. Map ----- +----------------------------------------------------+ | ?????????????????????????????????????????????????? | | ?????????????????????????????????????????????????? | | ?????????????????????????????????????????????????? | | ?????????????????????????????????????????????????? | | ####?????????????????????????????????????????????? | | #?????????????????????????????????????????????? | | " #?????????????????????????????????????????????? | | " #?????????????????????????????????????????????? | | " #?????????????????????????????????????????????? | | " #?????????????????????????????????????????????? | | " #?????????????????????????????????????????????? | | !#?###########????????????######???????????????? | | ####?# [ #????????? """ #???????????????? | | ?????# "" #???????# """"" #???????????????? | | ?????# "" #???????# """"" #???????????????? | | ?????# "T #???????# """"" #???????????????? | | ?????# "" """ #???????# """ #???????????????? | | ?????# "" """ #???????# #???????????????? | | ?????# """ #???????# ##??????????????? | | #????# #???????# % ##?? #??????????? | | ##########+####################+### #??????????? | | % Y %= #??????????? | | % #??????????? | | r u a #??????????? | | ###+######+######### ## u ;####### #??????????? | | #?# ## # # %@ #?????? #??????????? | | #?# ## % # # #??????? #??????????? | | #?# ## # # """ #???????? #??????????? | | #?# """ ##% # # """ #?????????#??????????? | | #?# """ ## # # #????????????????????? | | #?# """ ## # # ! #????????????????????? | | #?# ## # ########????????????????????? | | #?# """ ## # ????????????????????????????? | | #?# """ #####+###### ????????????????????????????? | | ??# """ #???# #????? ????????????????????????????? | | ??# #???# ###### ####????????????????????????? | | ??# #???# ?????????????????? | | ??#######???# ?????????????????? | | ????????????#### #######????????????????????? | | ???????????????# ##??????????????????????????? | | ???????????????# #???????????????????????????? | | ???????????????# ##??????????????????????????? | | ???????????????# ##??????????????????????????? | | ???????????????# #???????????????????????????? | | ??????????????? #???????????????????????????? | | ???????????????##### #???????????????????????????? | | ???????????????????? #???????????????????????????? | | ???????????????????? #???????????????????????????? | | ?????????????????????#???????????????????????????? | | ?????????????????????????????????????????????????? | +----------------------------------------------------+ Best States ------------- Heat Dissipation 58 Energy Generation 14 Energy Capacity 250 Matter Stores 300 Matter Capacity 300 Sight Range 16 Terrain Scan Density 10 Armor Coverage 300 Evasion (%) 55 Particle Charging 15 Item Schematics ----------------- None Robot Schematics ------------------ None Fabricated ------------ Nothing Repaired ---------- Nothing Alien Tech Used ----------------- None Achievements -------------- None Challenges ------------ None Game ------ Seed BladeGuidedPlating Manual? 0 Play Time 00:29:36 Cumulative 27.2 hours Start 2025.08.29 @ 01:42:37 End 2025.08.29 @ 02:10:46 Sessions 1 Manual Loads 0 Difficulty Rogue Special Mode None Game No. 32 Rogue 2 Adventurer 30 Explorer 0 Win Type - Total 0 Types 0/0/0/0/0/0/0/0/0/0 Lore% 13 Gallery% 19 Achievement% 19 Wizard Run 0 Options --------- Layout 1 ASCII 0 Keyboard 1 Movement Arrows Keybinds 0 Fullscreen 1 Font 24/Smallcaps Map View 50x35 Zoom Use 0% Tactical HUD 1 Map Filters NONE Filters NONE Steam 1 RUN: 0ba3150c-3318-426c-838d-0d7be984d866